fUST/lending_fUST_20241227
["ID","MTS","AMOUNT","RATE_DAILY","PERIOD"]
[346761339,1735266655463,-559.748862,0.00013698,2]
[346761340,1735266655473,-152.222023,0.00013698,2]
[346761341,1735266655482,-2036.42,0.00013698,2]
[346761342,1735266655492,-458.33684496,0.00013698,2]
[346761343,1735266655504,-1578.08315504,0.00013698,2]
[346761344,1735266655514,-2036.42,0.00013698,2]
[346761345,1735266655523,-2036.42,0.00013698,2]
[346761346,1735266655533,-2036.42,0.00013698,2]
[346761347,1735266655543,-151.0,0.00013698,2]
[346761348,1735266655552,-2036.42,0.00013698,2]
[346761349,1735266655562,-2036.42,0.00013698,2]
[346761350,1735266655571,-2036.42,0.00013698,2]
[346761351,1735266655581,-2036.42,0.00013698,2]
[346761352,1735266655592,-2036.42,0.00013698,2]
[346761353,1735266655602,-2036.42,0.00013698,2]
[346761354,1735266655612,-2036.42,0.00013698,2]
[346761355,1735266655621,-2036.42,0.00013698,2]
[346761356,1735266655631,-2036.42,0.00013698,2]
[346761357,1735266655641,-2036.42,0.00013698,2]
[346761358,1735266655650,-1133.56,0.00013698,2]
[346761359,1735266655659,-1133.56,0.00013698,2]
[346761360,1735266655669,-551.27395341,0.00013698,2]
[346761361,1735266655681,-582.28604659,0.00013698,2]
[346761362,1735266655689,-1133.56,0.00013698,2]
[346761363,1735266655699,-1133.56,0.00013698,2]
[346761364,1735266655708,-1133.56,0.00013698,2]
[346761365,1735266655718,-1133.56,0.00013698,2]
[346761366,1735266655728,-1133.56,0.00013698,2]
[346761367,1735266655738,-1133.56,0.00013698,2]
[346761368,1735266655747,-1133.56,0.00013698,2]
[346761369,1735266655757,-1133.56,0.00013698,2]
[346761370,1735266655766,-1133.56,0.00013698,2]
[346761371,1735266655776,-1133.56,0.00013698,2]
[346761372,1735266655785,-1133.56,0.00013698,2]
[346761373,1735266655795,-205.80706723,0.00013698,2]
[346761374,1735266655807,-927.75293277,0.00013698,2]
[346761375,1735266655817,-153.0,0.00013699,2]
[346761376,1735266655826,-153.0,0.00013699,2]
[346761377,1735266655839,-153.0,0.00013699,2]
[346761378,1735266655848,-153.0,0.00013699,2]
[346761379,1735266655858,-99.98792099,0.00013699,2]
[346761380,1735266656404,500.0,9.994e-05,2]
[346761381,1735266656442,3780.65,9.727e-05,2]
[346761382,1735266656495,3780.65,0.00010001,2]
[346761383,1735266656546,427.6374243,9.718e-05,2]
[346761384,1735266656655,500.0,9.718e-05,2]
[346761385,1735266656785,500.0,9.722e-05,2]
[346761386,1735266656919,500.0,9.72e-05,2]
[346761387,1735266657836,500.0,9.722e-05,2]
[346761388,1735266657878,498.40640724,9.72e-05,2]
[346761389,1735266657949,500.0,9.72e-05,2]
[346761390,1735266658188,500.0,9.72e-05,2]
[346761391,1735266658218,500.0,9.72e-05,2]
[346761392,1735266658247,493.71012609,9.994e-05,2]
[346761393,1735266658278,500.0,9.994e-05,2]
[346761394,1735266658322,500.0,9.722e-05,2]
[346761395,1735266658370,500.0,9.72e-05,2]
[346761396,1735266658403,500.0,9.994e-05,2]
[346761397,1735266658450,501.30819944,9.718e-05,2]
[346761398,1735266658695,501.52885409,9.718e-05,2]
[346761399,1735266658872,500.0,9.722e-05,2]
[346761400,1735266658908,500.5417126,9.718e-05,2]
[346761401,1735266658945,500.0,9.72e-05,2]
[346761402,1735266658986,500.0,9.722e-05,2]
[346761403,1735266659020,501.98691697,9.72e-05,2]
[346761404,1735266659836,167.20408884,9.722e-05,2]
[346761405,1735266660086,500.0,9.722e-05,2]
[346761406,1735266660569,300.0,9.719e-05,2]
[346761407,1735266664071,500.0,9.72e-05,2]
[346761408,1735266664383,500.0,9.994e-05,2]
[346761409,1735266667078,500.0,9.719e-05,2]
[346761410,1735266667164,275.48855468,9.718e-05,2]
[346761411,1735266667328,500.0,9.993e-05,2]
[346761412,1735266668882,500.0,9.72e-05,2]
[346761413,1735266669178,500.0,9.994e-05,2]
[346761414,1735266671045,500.0,9.719e-05,2]
[346761415,1735266671335,500.0,9.993e-05,2]
[346761416,1735266674282,500.0,9.718e-05,2]
[346761417,1735266674701,500.0,9.992e-05,2]
[346761418,1735266676197,502.69550652,9.718e-05,2]
[346761419,1735266680462,500.0,9.718e-05,2]
[346761420,1735266680742,500.0,9.992e-05,2]
[346761421,1735266681346,500.0,9.722e-05,2]
[346761422,1735266682433,500.0,9.718e-05,2]
[346761423,1735266682694,500.0,9.718e-05,2]
[346761424,1735266682724,500.0,9.992e-05,2]
[346761425,1735266682937,500.0,9.992e-05,2]
[346761426,1735266684789,500.0,9.718e-05,2]
[346761427,1735266686285,500.0,9.718e-05,2]
[346761428,1735266686550,325.58413528,9.992e-05,2]
[346761429,1735266686692,500.0,9.718e-05,2]
[346761430,1735266688536,210.82711596,9.718e-05,2]
[346761431,1735266689829,5350.98,9.72e-05,2]
[346761432,1735266690088,5350.98,9.994e-05,2]
[346761433,1735266690316,563.79710288,9.718e-05,2]
[346761434,1735266693280,500.0,9.718e-05,2]
[346761435,1735266693606,500.0,9.721e-05,2]
[346761436,1735266693890,500.0,9.992e-05,2]
[346761437,1735266694520,168.60097199,9.995e-05,2]
[346761438,1735266698442,500.0,9.722e-05,2]
[346761439,1735266702212,635.46854442,9.718e-05,2]
[346761440,1735266703535,500.0,9.722e-05,2]
[346761441,1735266707532,500.0,9.72e-05,2]
[346761442,1735266707838,197.12,9.994e-05,2]
[346761443,1735266713065,500.0,9.718e-05,2]
[346761444,1735266713117,500.0,9.72e-05,2]
[346761445,1735266713324,500.0,9.992e-05,2]
[346761446,1735266713361,500.0,9.994e-05,2]
[346761447,1735266714061,500.0,9.722e-05,2]
[346761448,1735266717382,500.0,9.722e-05,2]
[346761449,1735266718898,500.0,9.718e-05,2]
[346761450,1735266719137,500.0,9.992e-05,2]
[346761451,1735266722258,500.0,9.72e-05,2]
[346761452,1735266722546,500.0,9.994e-05,2]
[346761453,1735266723486,2239.07,9.719e-05,2]
[346761454,1735266723888,2239.07,9.993e-05,2]
[346761455,1735266724449,500.0,9.718e-05,2]
[346761456,1735266725658,500.0,9.72e-05,2]
[346761457,1735266725926,500.0,9.994e-05,2]
[346761458,1735266729912,500.0,9.722e-05,2]
[346761459,1735266732880,500.0,9.719e-05,2]
[346761460,1735266739994,500.0,9.718e-05,2]
[346761461,1735266740960,500.0,9.718e-05,2]
[346761462,1735266829403,-10000.0,9.06e-05,2]
[346761463,1735266831566,-10000.0,9.06e-05,2]
[346761464,1735266834453,-4900.0,9.06e-05,2]
[346761465,1735266886997,500.0,0.00020488,120]
[346761475,1735267547547,500.0,0.00023,120]
[346761476,1735267562203,3134.82545143,0.00023,120]
[346761477,1735267644250,-196.18729161,9.139e-05,2]
[346761478,1735267644309,-54.81261182,9.231e-05,2]
[346761479,1735267700966,-141.37467979,9.231e-05,2]
[346761480,1735267700992,-1650.37851614,9.52e-05,2]
[346761481,1735267701022,-1770.8480541,9.52e-05,2]
[346761482,1735267715118,19338.27164826,8.718e-05,2]
[346761483,1735267715156,5561.72835174,8.718e-05,2]
[346761484,1735267725722,-73.75372318,9.52e-05,2]
[346761485,1735267725747,-300.0,9.714e-05,2]
[346761486,1735267725773,-300.0,9.714e-05,2]
[346761487,1735267725800,-500.0,9.714e-05,2]
[346761488,1735267725829,-500.0,9.714e-05,2]
[346761489,1735267726041,-189.25149775,9.714e-05,2]
[346761490,1735267726088,-310.74850225,9.714e-05,2]
[346761491,1735267726114,-500.0,9.715e-05,2]
[346761492,1735267726140,-99.53166174,9.715e-05,2]
[346761494,1735267750701,-300.0,9.617e-05,2]
[346761495,1735267750727,-300.0,9.714e-05,2]
[346761496,1735267750752,-300.0,9.714e-05,2]
[346761497,1735267750776,-400.46833826,9.715e-05,2]
[346761498,1735267750801,-345.40602296,9.715e-05,2]
[346761499,1735267750826,-272.59656741,9.715e-05,2]
[346761500,1735267750858,-227.40343259,9.715e-05,2]
[346761501,1735267750883,-500.0,9.715e-05,2]
[346761502,1735267750907,-502.55117259,9.715e-05,2]
[346761503,1735267750932,-496.08295239,9.715e-05,2]
[346761504,1735267752139,-3.91704761,9.715e-05,2]
[346761505,1735267752163,-500.0,9.715e-05,2]
[346761506,1735267752185,-516.65128956,9.715e-05,2]
[346761507,1735267752205,-500.0,9.715e-05,2]
[346761508,1735267752226,-500.0,9.715e-05,2]
[346761509,1735267752250,-500.0,9.715e-05,2]
[346761510,1735267752271,-500.0,9.715e-05,2]
[346761511,1735267752291,-256.63454551,9.715e-05,2]
[346761512,1735267752311,-501.41118534,9.715e-05,2]
[346761513,1735267752461,-500.0,9.715e-05,2]
[346761514,1735267752482,-500.0,9.715e-05,2]
[346761515,1735267752503,-500.50638857,9.715e-05,2]
[346761516,1735267752524,-501.02687306,9.715e-05,2]
[346761517,1735267752545,-501.0105163,9.715e-05,2]
[346761518,1735267752566,-502.05973686,9.715e-05,2]
[346761519,1735267752588,-500.0,9.715e-05,2]
[346761520,1735267752610,-500.0,9.715e-05,2]
[346761521,1735267752631,-500.91007195,9.715e-05,2]
[346761522,1735267752651,-501.67893045,9.715e-05,2]
[346761523,1735267752671,-500.63893206,9.715e-05,2]
[346761524,1735267752691,-501.92949117,9.715e-05,2]
[346761525,1735267752711,-500.0,9.715e-05,2]
[346761526,1735267752731,-532.94100621,9.715e-05,2]
[346761527,1735267752752,-501.07787725,9.715e-05,2]
[346761528,1735267752772,-500.0,9.715e-05,2]
[346761529,1735267752793,-500.0,9.715e-05,2]
[346761530,1735267752814,-500.0,9.715e-05,2]
[346761531,1735267752835,-500.0,9.715e-05,2]
[346761532,1735267752858,-500.0,9.715e-05,2]
[346761533,1735267752878,-502.5982317,9.715e-05,2]
[346761534,1735267752898,-509.40068822,9.715e-05,2]
[346761535,1735267752918,-500.0,9.715e-05,2]
[346761536,1735267752938,-500.22858821,9.715e-05,2]
[346761537,1735267752960,-500.0,9.715e-05,2]
[346761538,1735267752982,-503.19767124,9.715e-05,2]
[346761539,1735267753002,-513.21765516,9.715e-05,2]
[346761540,1735267753023,-500.0,9.715e-05,2]
[346761541,1735267753043,-500.0,9.715e-05,2]
[346761542,1735267753064,-504.03083687,9.715e-05,2]
[346761543,1735267753085,-500.30782346,9.715e-05,2]
[346761544,1735267753107,-500.86871287,9.715e-05,2]
[346761545,1735267753127,-500.0,9.715e-05,2]
[346761546,1735267753147,-500.0,9.715e-05,2]
[346761547,1735267753170,-501.10710923,9.715e-05,2]
[346761548,1735267753191,-501.88421758,9.715e-05,2]
[346761549,1735267753211,-502.05394083,9.715e-05,2]
[346761550,1735267753231,-500.0,9.715e-05,2]
[346761551,1735267753256,-500.0,9.715e-05,2]
[346761552,1735267753277,-490.27386238,9.715e-05,2]
[346761553,1735267763326,-1068.95792687,9.618e-05,2]
[346761554,1735267763388,-500.0,9.715e-05,2]
[346761555,1735267763447,-568.95792687,9.715e-05,2]
[346761556,1735267763503,-500.0,9.715e-05,2]
[346761557,1735267763560,-11.43927647,9.715e-05,2]
[346761558,1735267763616,-500.0,9.715e-05,2]
[346761559,1735267763674,-500.0,9.715e-05,2]
[346761560,1735267763730,-500.0,9.715e-05,2]
[346761561,1735267763787,-500.0,9.715e-05,2]
[346761562,1735267763850,-500.0,9.715e-05,2]
[346761563,1735267763910,-500.0,9.715e-05,2]
[346761564,1735267763968,-500.0,9.715e-05,2]
[346761565,1735267764027,-420.6524063,9.715e-05,2]
[346761566,1735267764088,-500.0,9.715e-05,2]
[346761567,1735267764151,-500.0,9.715e-05,2]
[346761568,1735267764217,-500.0,9.715e-05,2]
[346761569,1735267764276,-194.7945588,9.715e-05,2]
[346761570,1735267764339,-377.72563653,9.715e-05,2]
[346761571,1735267764398,-500.0,9.715e-05,2]
[346761572,1735267764458,-500.0,9.715e-05,2]
[346761573,1735267764513,-357.41226906,9.715e-05,2]
[346761574,1735267764568,-267.70395106,9.715e-05,2]
[346761575,1735267764625,-500.0,9.715e-05,2]
[346761576,1735267764682,-500.0,9.715e-05,2]
[346761577,1735267764737,-500.0,9.715e-05,2]
[346761578,1735267764796,-500.0,9.715e-05,2]
[346761579,1735267764855,-500.0,9.715e-05,2]
[346761580,1735267764914,-500.0,9.715e-05,2]
[346761581,1735267764970,-500.0,9.715e-05,2]
[346761582,1735267765026,-500.0,9.715e-05,2]
[346761583,1735267765084,-500.0,9.715e-05,2]
[346761584,1735267765139,-500.0,9.715e-05,2]
[346761585,1735267765195,-500.0,9.715e-05,2]
[346761586,1735267765247,-500.0,9.715e-05,2]
[346761587,1735267765304,-500.0,9.715e-05,2]
[346761588,1735267765361,-500.0,9.715e-05,2]
[346761589,1735267765422,-448.0523657,9.715e-05,2]
[346761590,1735267765480,-500.0,9.715e-05,2]
[346761591,1735267765537,-500.0,9.715e-05,2]
[346761592,1735267765597,-500.0,9.715e-05,2]
[346761593,1735267765656,-500.0,9.715e-05,2]
[346761594,1735267765716,-500.0,9.715e-05,2]
[346761595,1735267765786,-500.0,9.715e-05,2]
[346761596,1735267765855,-500.0,9.715e-05,2]
[346761597,1735267765921,-500.0,9.715e-05,2]
[346761598,1735267765986,-500.0,9.715e-05,2]
[346761599,1735267766052,-500.0,9.715e-05,2]
[346761600,1735267766250,-500.0,9.715e-05,2]
[346761601,1735267766309,-500.0,9.715e-05,2]
[346761602,1735267766366,-159.76995019,9.715e-05,2]
[346761603,1735267766425,-155.36058844,9.715e-05,2]
[346761604,1735267766484,-578.61050231,9.715e-05,2]
[346761605,1735267766540,-500.0,9.716e-05,2]
[346761606,1735267766596,-500.0,9.716e-05,2]
[346761607,1735267766648,-501.54249789,9.716e-05,2]
[346761608,1735267766701,-500.0,9.716e-05,2]
[346761609,1735267766749,-500.0,9.716e-05,2]
[346761610,1735267766802,-502.27882223,9.716e-05,2]
[346761611,1735267766854,-500.0,9.716e-05,2]
[346761612,1735267766906,-500.0,9.716e-05,2]
[346761613,1735267766959,-355.20382433,9.716e-05,2]
[346761614,1735267767012,-500.0,9.716e-05,2]
[346761615,1735267767074,-500.0,9.716e-05,2]
[346761616,1735267767137,-500.0,9.716e-05,2]
[346761617,1735267767194,-523.14947342,9.716e-05,2]
[346761618,1735267767253,-500.0,9.716e-05,2]
[346761619,1735267767307,-500.0,9.716e-05,2]
[346761620,1735267767358,-500.0,9.716e-05,2]
[346761621,1735267767407,-500.0,9.716e-05,2]
[346761622,1735267767461,-500.0,9.716e-05,2]
[346761623,1735267767511,-500.0,9.716e-05,2]
[346761624,1735267767557,-500.0,9.716e-05,2]
[346761625,1735267767603,-227.8361117,9.716e-05,2]
[346761626,1735267767650,-500.0,9.716e-05,2]
[346761627,1735267767700,-500.0,9.716e-05,2]
[346761628,1735267767750,-500.0,9.716e-05,2]
[346761629,1735267767799,-500.0,9.716e-05,2]
[346761630,1735267767848,-500.0,9.716e-05,2]
[346761631,1735267767895,-615.08943966,9.716e-05,2]
[346761632,1735267767941,-503.22881144,9.716e-05,2]
[346761633,1735267767987,-455.72823187,9.716e-05,2]
[346761634,1735267768038,-375.30980314,9.716e-05,2]
[346761635,1735267768087,-500.0,9.716e-05,2]
[346761636,1735267768137,-500.0,9.716e-05,2]
[346761637,1735267768182,-500.0,9.716e-05,2]
[346761638,1735267768229,-500.0,9.716e-05,2]
[346761639,1735267768276,-500.0,9.716e-05,2]
[346761640,1735267768324,-500.0,9.716e-05,2]
[346761641,1735267768372,-899.61,9.716e-05,2]
[346761642,1735267768422,-1965.39,9.716e-05,2]
[346761643,1735267768470,-610.87,9.716e-05,2]
[346761644,1735267768518,-536.6,9.716e-05,2]
[346761645,1735267768567,-499.0,9.716e-05,2]
[346761646,1735267768613,-500.0,9.716e-05,2]
[346761647,1735267768660,-500.0,9.716e-05,2]
[346761648,1735267768707,-500.0,9.716e-05,2]
[346761649,1735267768753,-500.0,9.716e-05,2]
[346761650,1735267768801,-500.0,9.716e-05,2]
[346761651,1735267768850,-500.0,9.716e-05,2]
[346761652,1735267768898,-500.0,9.716e-05,2]
[346761653,1735267768947,-533.13,9.716e-05,2]
[346761654,1735267768995,-500.0,9.716e-05,2]
[346761655,1735267769047,-500.0,9.716e-05,2]
[346761656,1735267769103,-500.0,9.716e-05,2]
[346761657,1735267769158,-899.11,9.716e-05,2]
[346761658,1735267769210,-500.0,9.716e-05,2]
[346761659,1735267769261,-500.0,9.716e-05,2]
[346761660,1735267769312,-500.0,9.716e-05,2]
[346761661,1735267769365,-500.0,9.716e-05,2]
[346761662,1735267769419,-500.0,9.716e-05,2]
[346761663,1735267769472,-500.0,9.716e-05,2]
[346761664,1735267769528,-500.0,9.716e-05,2]
[346761665,1735267769581,-500.0,9.716e-05,2]
[346761666,1735267769632,-500.0,9.716e-05,2]
[346761667,1735267769678,-500.0,9.716e-05,2]
[346761668,1735267769724,-500.0,9.716e-05,2]
[346761669,1735267769772,-621.33,9.716e-05,2]
[346761670,1735267769822,-500.0,9.716e-05,2]
[346761671,1735267769871,-500.0,9.716e-05,2]
[346761672,1735267769918,-500.0,9.716e-05,2]
[346761673,1735267769965,-500.0,9.716e-05,2]
[346761674,1735267770082,-225.30154097,9.716e-05,2]
[346761675,1735267770150,-500.0,9.716e-05,2]
[346761676,1735267770200,-500.0,9.716e-05,2]
[346761677,1735267770252,-500.0,9.716e-05,2]
[346761678,1735267770302,-4185.74,9.716e-05,2]
[346761679,1735267770350,-500.0,9.716e-05,2]
[346761680,1735267770399,-500.0,9.716e-05,2]
[346761681,1735267770447,-500.0,9.716e-05,2]
[346761682,1735267770497,-500.0,9.716e-05,2]
[346761683,1735267770542,-501.87323667,9.716e-05,2]
[346761684,1735267770597,-500.0,9.716e-05,2]
[346761685,1735267770644,-2072.0,9.716e-05,2]
[346761686,1735267770688,-500.0,9.716e-05,2]
[346761687,1735267770732,-500.0,9.716e-05,2]
[346761688,1735267770784,-501.08690968,9.716e-05,2]
[346761689,1735267770835,-500.0,9.716e-05,2]
[346761690,1735267770887,-500.0,9.716e-05,2]
[346761691,1735267770934,-500.0,9.717e-05,2]
[346761692,1735267770982,-500.0,9.717e-05,2]
[346761693,1735267771032,-500.0,9.717e-05,2]
[346761694,1735267771084,-492.55110074,9.717e-05,2]
[346761695,1735267771138,-533.13,9.717e-05,2]
[346761696,1735267771190,-533.13,9.717e-05,2]
[346761697,1735267771245,-533.13,9.717e-05,2]
[346761698,1735267771296,-500.0,9.717e-05,2]
[346761699,1735267771347,-500.0,9.717e-05,2]
[346761700,1735267771397,-500.0,9.717e-05,2]
[346761701,1735267771446,-500.0,9.717e-05,2]
[346761702,1735267771493,-503.68518393,9.717e-05,2]
[346761703,1735267771545,-654.6,9.717e-05,2]
[346761704,1735267771593,-500.0,9.717e-05,2]
[346761705,1735267771645,-1315.67,9.717e-05,2]
[346761706,1735267771698,-500.0,9.717e-05,2]
[346761707,1735267771750,-500.0,9.717e-05,2]
[346761708,1735267771803,-500.0,9.717e-05,2]
[346761709,1735267771855,-609.14,9.717e-05,2]
[346761710,1735267771911,-500.0,9.717e-05,2]
[346761711,1735267771962,-500.0,9.717e-05,2]
[346761712,1735267772011,-500.0,9.717e-05,2]
[346761713,1735267772064,-500.0,9.718e-05,2]
[346761714,1735267772115,-500.0,9.718e-05,2]
[346761715,1735267772165,-500.0,9.718e-05,2]
[346761716,1735267772215,-500.77980982,9.718e-05,2]
[346761717,1735267772257,-502.18078475,9.718e-05,2]
[346761718,1735267772301,-500.0,9.718e-05,2]
[346761719,1735267772345,-501.01033589,9.718e-05,2]
[346761720,1735267772392,-500.0,9.718e-05,2]
[346761721,1735267772436,-500.0,9.718e-05,2]
[346761722,1735267772482,-500.0,9.718e-05,2]
[346761723,1735267772531,-500.0,9.718e-05,2]
[346761724,1735267772577,-501.25826636,9.718e-05,2]
[346761725,1735267772620,-500.0,9.718e-05,2]
[346761726,1735267772666,-500.0,9.718e-05,2]
[346761727,1735267772710,-500.0,9.718e-05,2]
[346761728,1735267772755,-500.0,9.718e-05,2]
[346761729,1735267772798,-500.0,9.718e-05,2]
[346761730,1735267772845,-500.0,9.718e-05,2]
[346761731,1735267772892,-500.0,9.718e-05,2]
[346761732,1735267772937,-500.0,9.718e-05,2]
[346761733,1735267772981,-501.30480539,9.718e-05,2]
[346761734,1735267773025,-500.0,9.718e-05,2]
[346761735,1735267773077,-500.0,9.718e-05,2]
[346761736,1735267773129,-500.0,9.718e-05,2]
[346761737,1735267773178,-500.0,9.718e-05,2]
[346761738,1735267773229,-501.53285767,9.718e-05,2]
[346761739,1735267773282,-500.0,9.718e-05,2]
[346761740,1735267773335,-500.0,9.718e-05,2]
[346761741,1735267773388,-500.0,9.718e-05,2]
[346761742,1735267773444,-501.07249079,9.718e-05,2]
[346761743,1735267773497,-609.48613538,9.718e-05,2]
[346761744,1735267773549,-558.40527035,9.718e-05,2]
[346761745,1735267773600,-501.85290249,9.718e-05,2]
[346761746,1735267773746,-500.70766315,9.718e-05,2]
[346761747,1735267773803,-500.0,9.718e-05,2]
[346761748,1735267773859,-501.27295048,9.718e-05,2]
[346761749,1735267773913,-502.7621092,9.718e-05,2]
[346761750,1735267773966,-500.0,9.718e-05,2]
[346761751,1735267774020,-500.0,9.718e-05,2]
[346761752,1735267774075,-496.66515315,9.718e-05,2]
[346761753,1735267774129,-502.27930882,9.718e-05,2]
[346761754,1735267774184,-500.0,9.718e-05,2]
[346761755,1735267774238,-501.76165185,9.718e-05,2]
[346761756,1735267774294,-500.0,9.718e-05,2]
[346761757,1735267774350,-500.0,9.718e-05,2]
[346761758,1735267774404,-500.0,9.718e-05,2]
[346761759,1735267774458,-500.0,9.718e-05,2]
[346761760,1735267774511,-500.0,9.718e-05,2]
[346761761,1735267774559,-500.0,9.718e-05,2]
[346761762,1735267774607,-500.0,9.718e-05,2]
[346761763,1735267774652,-502.85787757,9.718e-05,2]
[346761764,1735267774696,-500.0,9.718e-05,2]
[346761765,1735267774744,-500.0,9.718e-05,2]
[346761766,1735267774792,-500.0,9.718e-05,2]
[346761767,1735267774840,-500.0,9.718e-05,2]
[346761768,1735267774887,-412.58715815,9.718e-05,2]
[346761769,1735267774936,-500.0,9.718e-05,2]
[346761770,1735267774989,-500.0,9.718e-05,2]
[346761771,1735267775045,-500.0,9.718e-05,2]
[346761772,1735267775105,-500.0,9.718e-05,2]
[346761773,1735267775164,-500.0,9.718e-05,2]
[346761774,1735267775227,-505.24002864,9.718e-05,2]
[346761775,1735267775287,-500.0,9.718e-05,2]
[346761776,1735267775340,-500.0,9.718e-05,2]
[346761777,1735267775391,-500.32960345,9.718e-05,2]
[346761778,1735267775440,-500.0,9.718e-05,2]
[346761779,1735267775492,-500.0,9.718e-05,2]
[346761780,1735267775552,-500.0,9.718e-05,2]
[346761781,1735267775609,-306.15373812,9.718e-05,2]
[346761782,1735267775661,-500.0,9.718e-05,2]
[346761783,1735267775710,-500.0,9.718e-05,2]
[346761784,1735267775761,-500.0,9.718e-05,2]
[346761785,1735267775813,-500.0,9.718e-05,2]
[346761786,1735267775865,-500.0,9.718e-05,2]
[346761787,1735267775923,-500.0,9.718e-05,2]
[346761788,1735267775979,-504.4277026,9.718e-05,2]
[346761789,1735267776036,-502.1690677,9.718e-05,2]
[346761790,1735267776097,-500.0,9.718e-05,2]
[346761791,1735267776152,-500.0,9.718e-05,2]
[346761792,1735267776209,-500.0,9.718e-05,2]
[346761793,1735267776261,-492.56983868,9.718e-05,2]
[346761794,1735267776313,-500.0,9.718e-05,2]
[346761795,1735267776368,-420.86738756,9.718e-05,2]
[346761796,1735267776425,-500.0,9.718e-05,2]
[346761797,1735267776483,-500.0,9.718e-05,2]
[346761798,1735267776538,-500.0,9.718e-05,2]
[346761799,1735267776590,-500.0,9.718e-05,2]
[346761800,1735267776640,-503.40745806,9.718e-05,2]
[346761801,1735267776689,-500.0,9.718e-05,2]
[346761802,1735267776738,-500.0,9.718e-05,2]
[346761803,1735267776787,-500.0,9.718e-05,2]
[346761804,1735267776838,-500.0,9.718e-05,2]
[346761805,1735267776890,-500.0,9.718e-05,2]
[346761806,1735267776942,-500.0,9.718e-05,2]
[346761807,1735267776991,-500.0,9.718e-05,2]
[346761808,1735267777040,-594.42586176,9.718e-05,2]
[346761809,1735267777089,-500.0,9.718e-05,2]
[346761810,1735267777142,-500.0,9.718e-05,2]
[346761811,1735267777193,-525.6745882,9.718e-05,2]
[346761812,1735267777243,-500.0,9.718e-05,2]
[346761813,1735267777288,-500.0,9.718e-05,2]
[346761814,1735267777335,-500.0,9.718e-05,2]
[346761815,1735267777465,-500.0,9.718e-05,2]
[346761816,1735267777524,-257.42540647,9.718e-05,2]
[346761817,1735267777581,-500.0,9.718e-05,2]
[346761818,1735267777636,-500.0,9.718e-05,2]
[346761819,1735267777688,-502.55197986,9.718e-05,2]
[346761820,1735267777737,-500.0,9.718e-05,2]
[346761821,1735267777785,-500.0,9.718e-05,2]
[346761822,1735267777835,-502.03784482,9.718e-05,2]
[346761823,1735267777889,-500.0,9.718e-05,2]
[346761824,1735267777938,-500.0,9.718e-05,2]
[346761825,1735267777988,-500.0,9.718e-05,2]
[346761826,1735267778041,-500.0,9.718e-05,2]
[346761827,1735267778105,-500.0,9.718e-05,2]
[346761828,1735267778160,-502.37078224,9.718e-05,2]
[346761829,1735267778216,-500.0,9.718e-05,2]
[346761830,1735267778268,-500.0,9.718e-05,2]
[346761831,1735267778320,-500.0,9.718e-05,2]
[346761832,1735267778370,-500.0,9.718e-05,2]
[346761833,1735267778422,-500.0,9.718e-05,2]
[346761834,1735267778477,-418.9939814,9.718e-05,2]
[346761835,1735267778530,-500.0,9.718e-05,2]
[346761836,1735267778583,-500.0,9.718e-05,2]
[346761837,1735267778632,-500.0,9.718e-05,2]
[346761838,1735267778685,-500.0,9.718e-05,2]
[346761839,1735267778737,-500.0,9.718e-05,2]
[346761840,1735267778791,-500.0,9.718e-05,2]
[346761841,1735267778844,-500.0,9.718e-05,2]
[346761842,1735267778899,-500.0,9.718e-05,2]
[346761843,1735267778956,-500.0,9.718e-05,2]
[346761844,1735267779019,-500.0,9.718e-05,2]
[346761845,1735267779076,-500.0,9.718e-05,2]
[346761846,1735267779132,-500.0,9.718e-05,2]
[346761847,1735267779190,-500.0,9.718e-05,2]
[346761848,1735267779247,-501.00814687,9.718e-05,2]